fUSD/lending_fUSD_20260409
["ID","MTS","AMOUNT","RATE_DAILY","PERIOD"]
[420137614,1775709058964,-156.115211,0.00014579,2]
[420137615,1775709058973,-151.0,0.00014579,2]
[420137616,1775709058982,-151.0,0.00014579,2]
[420137617,1775709058992,-357.725285,0.00014579,2]
[420137618,1775709059001,-692.000965,0.00014579,2]
[420137619,1775709059010,-247.297247,0.00014579,2]
[420137620,1775709059020,-151.0,0.00014579,2]
[420137621,1775709059029,-151.0,0.00014579,2]
[420137622,1775709059039,-357.725285,0.00014579,2]
[420137623,1775709059048,-1622.574851,0.00014579,2]
[420137624,1775709059058,-247.297247,0.00014579,2]
[420137625,1775709059067,-692.000965,0.00014579,2]
[420137626,1775709059077,-357.725285,0.00014579,2]
[420137627,1775709059086,-1622.574851,0.00014579,2]
[420137628,1775709059096,-151.0,0.00014579,2]
[420137629,1775709059106,-247.297247,0.00014579,2]
[420137630,1775709059116,-692.000965,0.00014579,2]
[420137631,1775709059126,-357.725285,0.00014579,2]
[420137632,1775709059136,-1622.574851,0.00014579,2]
[420137633,1775709059145,-2985.482116,0.00014579,2]
[420137634,1775709059155,-619.659745,0.00014579,2]
[420137635,1775709059169,-1588.483192,0.00014579,2]
[420137636,1775709059184,-151.0,0.00014579,2]
[420137637,1775709059199,-247.297247,0.00014579,2]
[420137638,1775709059210,-692.000965,0.00014579,2]
[420137639,1775709059224,-1622.574851,0.00014579,2]
[420137640,1775709059237,-1588.483192,0.00014579,2]
[420137641,1775709059250,-2985.482116,0.00014579,2]
[420137642,1775709059264,-619.659745,0.00014579,2]
[420137643,1775709059277,-151.0,0.00014579,2]
[420137644,1775709059290,-2985.482116,0.00014579,2]
[420137645,1775709059304,-619.659745,0.00014579,2]
[420137646,1775709059317,-1588.483192,0.00014579,2]
[420137647,1775709059331,-346.125253,0.00014579,2]
[420137648,1775709059344,-619.659745,0.00014579,2]
[420137649,1775709059356,-1588.483192,0.00014579,2]
[420137650,1775709059368,-346.125253,0.00014579,2]
[420137651,1775709059379,-151.0,0.00014579,2]
[420137652,1775709059392,-1819.505526,0.00014579,2]
[420137653,1775709059405,-293.437498,0.00014579,2]
[420137654,1775709059418,-183.733129,0.00014579,2]
[420137655,1775709059432,-346.125253,0.00014579,2]
[420137656,1775709059445,-151.0,0.00014579,2]
[420137657,1775709059459,-293.437498,0.00014579,2]
[420137658,1775709059472,-1819.505526,0.00014579,2]
[420137659,1775709059486,-346.125253,0.00014579,2]
[420137660,1775709059496,-293.437498,0.00014579,2]
[420137661,1775709059507,-248.178679,0.00014579,2]
[420137662,1775709059518,-1819.505526,0.00014579,2]
[420137663,1775709059533,-151.0,0.00014579,2]
[420137664,1775709059544,-151.0,0.00014579,2]
[420137665,1775709059557,-151.0,0.00014579,2]
[420137666,1775709059570,-293.437498,0.00014579,2]
[420137667,1775709059583,-1819.505526,0.00014579,2]
[420137668,1775709059595,-151.0,0.00014579,2]
[420137669,1775709059610,-151.0,0.00014579,2]
[420137670,1775709059621,-151.0,0.00014579,2]
[420137671,1775709059632,-151.0,0.00014579,2]
[420137672,1775709059643,-151.0,0.00014579,2]
[420137673,1775709059655,-224.552973,0.00014579,2]
[420137674,1775709059666,-200.618948,0.00014579,2]
[420137675,1775709059678,-185.827137,0.00014579,2]
[420137676,1775709059689,-151.0,0.00014579,2]
[420137677,1775709059700,-185.827137,0.00014579,2]
[420137678,1775709059712,-200.618948,0.00014579,2]
[420137679,1775709059724,-1427.937228,0.00014579,2]
[420137680,1775709059735,-200.618948,0.00014579,2]
[420137681,1775709059747,-1427.937228,0.00014579,2]
[420137682,1775709059758,-200.618948,0.00014579,2]
[420137683,1775709059771,-1427.937228,0.00014579,2]
[420137684,1775709059783,-185.827137,0.00014579,2]
[420137685,1775709059795,-151.0,0.00014579,2]
[420137686,1775709059806,-1427.937228,0.00014579,2]
[420137687,1775709059817,-185.827137,0.00014579,2]
[420137688,1775709059829,-151.0,0.00014579,2]
[420137689,1775709059841,-176.774687,0.00014579,2]
[420137690,1775709059853,-151.0,0.00014579,2]
[420137691,1775709059864,-176.774687,0.00014579,2]
[420137692,1775709059876,-277.165921,0.00014579,2]
[420137693,1775709059887,-176.774687,0.00014579,2]
[420137694,1775709059899,-277.165921,0.00014579,2]
[420137695,1775709059911,-176.774687,0.00014579,2]
[420137696,1775709059922,-217.211063,0.00014579,2]
[420137697,1775709059933,-277.165921,0.00014579,2]
[420137698,1775709059944,-277.165921,0.00014579,2]
[420137699,1775709059956,-217.211063,0.00014579,2]
[420137700,1775709059967,-151.0,0.00014579,2]
[420137701,1775709059978,-217.211063,0.00014579,2]
[420137702,1775709059989,-151.0,0.00014579,2]
[420137703,1775709060001,-151.0,0.00014579,2]
[420137704,1775709060012,-217.211063,0.00014579,2]
[420137705,1775709060025,-151.0,0.00014579,2]
[420137706,1775709060037,-153.606661,0.00014579,2]
[420137707,1775709060049,-151.0,0.00014579,2]
[420137708,1775709060061,-255.850928,0.00014579,2]
[420137709,1775709060072,-192.515506,0.00014579,2]
[420137710,1775709060084,-192.515506,0.00014579,2]
[420137711,1775709060096,-192.515506,0.00014579,2]
[420137712,1775709060109,-192.515506,0.00014579,2]
[420137713,1775709060121,-823.0,0.00014594,2]
[420137714,1775709060133,-1000.0,0.00014597,2]
[420137715,1775709060145,-306.0,0.000146,2]
[420137716,1775709060157,-1000.0,0.000146,2]
[420137717,1775709060169,-313.0,0.000146,2]
[420137718,1775709060181,-200.0,0.000146,2]
[420137719,1775709060194,-1000.0,0.00014603,2]
[420137720,1775709060206,-1000.0,0.00014604,2]
[420137721,1775709060217,-1000.0,0.00014605,2]
[420137722,1775709060229,-1000.0,0.00014614,2]
[420137723,1775709060251,-363.216153,0.00014615,2]
[420137724,1775709060263,-198.559977,0.00014615,2]
[420137725,1775709060275,-363.216153,0.00014615,2]
[420137726,1775709060287,-198.559977,0.00014615,2]
[420137727,1775709060298,-363.216153,0.00014615,2]
[420137728,1775709060311,-198.559977,0.00014615,2]
[420137729,1775709060322,-198.559977,0.00014615,2]
[420137730,1775709060334,-363.216153,0.00014615,2]
[420137731,1775709060346,-189.699961,0.00014615,2]
[420137732,1775709060357,-458.589144,0.00014615,2]
[420137733,1775709060369,-151.0,0.00014615,2]
[420137734,1775709060380,-189.699961,0.00014615,2]
[420137735,1775709060392,-536.335295,0.00014615,2]
[420137736,1775709060404,-542.666277,0.00014615,2]
[420137737,1775709060415,-151.0,0.00014615,2]
[420137738,1775709060427,-442.41648,0.00014615,2]
[420137739,1775709060439,-536.335295,0.00014615,2]
[420137740,1775709060450,-189.699961,0.00014615,2]
[420137741,1775709060461,-217.032128,0.00014615,2]
[420137742,1775709060472,-542.666277,0.00014615,2]
[420137743,1775709060484,-151.0,0.00014615,2]
[420137744,1775709060495,-442.41648,0.00014615,2]
[420137745,1775709060507,-536.335295,0.00014615,2]
[420137746,1775709060518,-298.808376,0.00014615,2]
[420137747,1775709060530,-189.699961,0.00014615,2]
[420137748,1775709060542,-458.589144,0.00014615,2]
[420137749,1775709060554,-151.0,0.00014615,2]
[420137750,1775709060565,-542.666277,0.00014615,2]
[420137751,1775709060577,-442.41648,0.00014615,2]
[420137752,1775709060589,-298.808376,0.00014615,2]
[420137753,1775709060600,-536.335295,0.00014615,2]
[420137754,1775709060612,-458.589144,0.00014615,2]
[420137755,1775709060624,-542.666277,0.00014615,2]
[420137756,1775709060635,-442.41648,0.00014615,2]
[420137757,1775709060647,-151.0,0.00014615,2]
[420137758,1775709060659,-298.808376,0.00014615,2]
[420137759,1775709060670,-458.589144,0.00014615,2]
[420137760,1775709060683,-9526.695951,0.00014615,2]
[420137761,1775709060695,-1390.992094,0.00014615,2]
[420137762,1775709060706,-1547.887778,0.00014615,2]
[420137763,1775709060718,-9025.806641,0.00014615,2]
[420137764,1775709060730,-9526.695951,0.00014615,2]
[420137765,1775709060741,-1390.992094,0.00014615,2]
[420137766,1775709060752,-1547.887778,0.00014615,2]
[420137767,1775709060765,-9025.806641,0.00014615,2]
[420137768,1775709060776,-1390.992094,0.00014615,2]
[420137769,1775709060788,-9526.695951,0.00014615,2]
[420137770,1775709060800,-151.0,0.00014615,2]
[420137771,1775709060812,-9025.806641,0.00014615,2]
[420137772,1775709060823,-1547.887778,0.00014615,2]
[420137773,1775709060836,-1390.992094,0.00014615,2]
[420137774,1775709060848,-9526.695951,0.00014615,2]
[420137775,1775709060860,-151.0,0.00014615,2]
[420137776,1775709060871,-1547.887778,0.00014615,2]
[420137777,1775709060883,-9025.806641,0.00014615,2]
[420137778,1775709060896,-298.808376,0.00014615,2]
[420137779,1775709060907,-151.0,0.00014615,2]
[420137780,1775709060919,-151.0,0.00014615,2]
[420137781,1775709060930,-151.0,0.00014615,2]
[420137782,1775709060942,-151.0,0.00014615,2]
[420137783,1775709060954,-151.0,0.00014615,2]
[420137784,1775709060965,-151.0,0.00014615,2]
[420137785,1775709060977,-151.0,0.00014615,2]
[420137786,1775709060988,-905.626067,0.00014615,2]
[420137787,1775709061000,-905.626067,0.00014615,2]
[420137788,1775709061012,-905.626067,0.00014615,2]
[420137789,1775709061023,-905.626067,0.00014615,2]
[420137790,1775709061035,-1098.985985,0.00014615,2]
[420137791,1775709061047,-1098.985985,0.00014615,2]
[420137792,1775709061058,-1318.550343,0.00014615,2]
[420137793,1775709061069,-151.0,0.00014615,2]
[420137794,1775709061080,-1098.985985,0.00014615,2]
[420137795,1775709061092,-1318.550343,0.00014615,2]
[420137796,1775709061103,-1098.985985,0.00014615,2]
[420137797,1775709061115,-1318.550343,0.00014615,2]
[420137798,1775709061127,-170.656032,0.00014615,2]
[420137799,1775709061139,-1318.550343,0.00014615,2]
[420137800,1775709061151,-170.656032,0.00014615,2]
[420137801,1775709061162,-170.656032,0.00014615,2]
[420137802,1775709061173,-170.656032,0.00014615,2]
[420137803,1775709061185,-212.276854,0.00014615,2]
[420137804,1775709061196,-212.276854,0.00014615,2]
[420137805,1775709061208,-212.276854,0.00014615,2]
[420137806,1775709061219,-212.276854,0.00014615,2]
[420137807,1775709061230,-3292.0,0.00014638,2]
[420137808,1775709061241,-350.0,0.00014641,2]
[420137809,1775709061253,-313.1361248,0.00014642,2]
[420137810,1775709061264,-150.0,0.00014646,2]
[420137811,1775709061275,-1000.0,0.00014646,2]
[420137812,1775709061286,-1000.0,0.0001465,2]
[420137813,1775709061298,-1000.0,0.00014652,2]
[420137814,1775709061309,-1000.0,0.00014656,2]
[420137815,1775709061320,-2000.0,0.0001466,2]
[420137816,1775709061331,-2000.0,0.0001466,2]
[420137817,1775709061342,-500.0,0.00014661,2]
[420137818,1775709061353,-500.0,0.00014661,2]
[420137819,1775709061364,-500.0,0.00014661,2]
[420137820,1775709061376,-500.0,0.00014661,2]
[420137821,1775709061387,-500.0,0.00014661,2]
[420137822,1775709061399,-500.0,0.00014661,2]
[420137823,1775709061410,-150.0,0.00014663,2]
[420137824,1775709061420,-1000.0,0.00014663,2]
[420137825,1775709061431,-150.0,0.00014664,2]
[420137826,1775709061443,-859.80605061,0.00014677,2]
[420137827,1775709061454,-201.93286099,0.00014677,2]
[420137828,1775709061465,-150.0,0.0001468,2]
[420137829,1775709061476,-2000.0,0.0001468,2]
[420137830,1775709061487,-1124.60160444,0.00014684,2]
[420137831,1775709061498,-150.0,0.00014686,2]
[420137832,1775709061510,-500.0,0.00014691,2]
[420137833,1775709061521,-200.0,0.00014691,2]
[420137834,1775709061532,-150.0,0.00014692,2]
[420137835,1775709061542,-150.0,0.00014693,2]
[420137836,1775709061554,-37353.14668503,0.00014694,2]
[420137837,1775709061565,-588.287141,0.00014694,2]
[420137838,1775709061576,-588.287141,0.00014694,2]
[420137839,1775709061587,-1195.981713,0.00014694,2]
[420137840,1775709061598,-151.0,0.00014694,2]
[420137841,1775709061610,-588.287141,0.00014694,2]
[420137842,1775709061621,-1195.981713,0.00014694,2]
[420137843,1775709061632,-588.287141,0.00014694,2]
[420137844,1775709061642,-193.661526,0.00014694,2]
[420137845,1775709061654,-795.875483,0.00014694,2]
[420137846,1775709061665,-1195.981713,0.00014694,2]
[420137847,1775709061676,-151.0,0.00014694,2]
[420137848,1775709061687,-193.661526,0.00014694,2]
[420137849,1775709061698,-623.023197,0.00014694,2]
[420137850,1775709061708,-172.035555,0.00014694,2]
[420137851,1775709061720,-795.875483,0.00014694,2]
[420137852,1775709061731,-1195.981713,0.00014694,2]
[420137853,1775709061742,-151.0,0.00014694,2]
[420137854,1775709061753,-151.0,0.00014694,2]
[420137855,1775709061764,-151.0,0.00014694,2]
[420137856,1775709061776,-193.661526,0.00014694,2]
[420137857,1775709061786,-151.0,0.00014694,2]
[420137858,1775709061797,-623.023197,0.00014694,2]
[420137859,1775709061808,-172.035555,0.00014694,2]
[420137860,1775709061819,-795.875483,0.00014694,2]
[420137861,1775709061830,-193.661526,0.00014694,2]
[420137862,1775709061841,-151.0,0.00014694,2]
[420137863,1775709061853,-623.023197,0.00014694,2]
[420137864,1775709061863,-172.035555,0.00014694,2]
[420137865,1775709061875,-795.875483,0.00014694,2]
[420137866,1775709061886,-774.058716,0.00014694,2]
[420137867,1775709063002,-172.035555,0.00014694,2]
[420137868,1775709063024,-623.023197,0.00014694,2]
[420137869,1775709063040,-151.0,0.00014694,2]
[420137870,1775709063065,-238.792721,0.00014694,2]
[420137871,1775709063102,-774.058716,0.00014694,2]
[420137872,1775709063114,-151.0,0.00014694,2]
[420137873,1775709063124,-151.0,0.00014694,2]
[420137874,1775709063133,-238.792721,0.00014694,2]
[420137875,1775709063143,-428.509352,0.00014694,2]
[420137876,1775709063152,-774.058716,0.00014694,2]
[420137877,1775709063161,-151.0,0.00014694,2]
[420137878,1775709063171,-234.247138,0.00014694,2]
[420137879,1775709063179,-151.0,0.00014694,2]
[420137880,1775709063189,-238.792721,0.00014694,2]
[420137881,1775709063198,-774.058716,0.00014694,2]
[420137882,1775709063208,-428.509352,0.00014694,2]
[420137883,1775709063217,-234.247138,0.00014694,2]
[420137884,1775709063226,-151.0,0.00014694,2]
[420137885,1775709063236,-151.0,0.00014694,2]
[420137886,1775709063245,-238.792721,0.00014694,2]
[420137887,1775709063254,-151.0,0.00014694,2]
[420137888,1775709063264,-234.247138,0.00014694,2]
[420137889,1775709063273,-428.509352,0.00014694,2]
[420137890,1775709063283,-151.0,0.00014694,2]
[420137891,1775709063292,-234.247138,0.00014694,2]
[420137892,1775709063302,-428.509352,0.00014694,2]
[420137893,1775709063311,-151.0,0.00014694,2]
[420137894,1775709063321,-151.0,0.00014694,2]
[420137895,1775709063331,-151.0,0.00014694,2]
[420137896,1775709063340,-151.0,0.00014694,2]
[420137897,1775709063349,-641.362299,0.00014694,2]
[420137898,1775709063359,-151.0,0.00014694,2]
[420137899,1775709063368,-641.362299,0.00014694,2]
[420137900,1775709063377,-151.0,0.00014694,2]
[420137901,1775709063386,-641.362299,0.00014694,2]
[420137902,1775709063396,-246.392819,0.00014694,2]
[420137903,1775709063405,-641.362299,0.00014694,2]
[420137904,1775709063414,-246.392819,0.00014694,2]
[420137905,1775709063423,-151.0,0.00014694,2]
[420137906,1775709063432,-246.392819,0.00014694,2]
[420137907,1775709063442,-246.392819,0.00014694,2]
[420137908,1775709063451,-167.506358,0.00014694,2]
[420137909,1775709063460,-900.14865,0.00014694,2]
[420137910,1775709063470,-151.0,0.00014694,2]
[420137911,1775709063479,-900.14865,0.00014694,2]
[420137912,1775709063488,-151.0,0.00014694,2]
[420137913,1775709063497,-900.14865,0.00014694,2]
[420137914,1775709063506,-151.0,0.00014694,2]
[420137915,1775709063515,-900.14865,0.00014694,2]
[420137916,1775709063524,-151.0,0.00014694,2]
[420137917,1775709063534,-151.0,0.00014694,2]
[420137918,1775709063543,-151.0,0.00014694,2]
[420137919,1775709063552,-151.0,0.00014694,2]
[420137920,1775709063561,-151.0,0.00014694,2]
[420137921,1775709063570,-151.0,0.00014694,2]
[420137922,1775709063580,-249.748488,0.00014694,2]
[420137923,1775709063588,-151.0,0.00014694,2]
[420137924,1775709063597,-153.308735,0.00014694,2]
[420137925,1775709063607,-151.0,0.00014694,2]
[420137926,1775709063615,-151.0,0.00014694,2]
[420137927,1775709063625,-237.645147,0.00014694,2]
[420137928,1775709063634,-2276.424721,0.00014694,2]
[420137929,1775709063644,-450.495765,0.00014694,2]
[420137930,1775709063653,-2276.424721,0.00014694,2]
[420137931,1775709063662,-450.495765,0.00014694,2]
[420137932,1775709063671,-203.38304,0.00014694,2]
[420137933,1775709063680,-2276.424721,0.00014694,2]
[420137934,1775709063689,-450.495765,0.00014694,2]
[420137935,1775709063699,-150.0,0.00014705,2]
[420137936,1775709063709,-240.314683,0.00014719,2]
[420137937,1775709063718,-240.314683,0.00014719,2]
[420137938,1775709063727,-240.314683,0.00014719,2]
[420137939,1775709063736,-240.314683,0.00014719,2]
[420137940,1775709063746,-516.638369,0.00014719,2]
[420137941,1775709063755,-314.095772,0.00014719,2]
[420137942,1775709063764,-516.638369,0.00014719,2]
[420137943,1775709063773,-314.095772,0.00014719,2]
[420137944,1775709063783,-516.638369,0.00014719,2]
[420137945,1775709063792,-314.095772,0.00014719,2]
[420137946,1775709063801,-389.508035,0.00014719,2]
[420137947,1775709063810,-314.095772,0.00014719,2]
[420137948,1775709063819,-389.508035,0.00014719,2]
[420137949,1775709063829,-151.0,0.00014719,2]
[420137950,1775709063838,-509.32745,0.00014719,2]
[420137951,1775709063847,-389.508035,0.00014719,2]
[420137952,1775709063856,-151.0,0.00014719,2]
[420137953,1775709063865,-509.32745,0.00014719,2]
[420137954,1775709063875,-151.0,0.00014719,2]
[420137955,1775709063884,-516.638369,0.00014719,2]
[420137956,1775709063893,-389.508035,0.00014719,2]
[420137957,1775709063903,-151.0,0.00014719,2]
[420137958,1775709063912,-275.52276027,0.00014719,2]
[420137959,1775709065658,-203.38304,0.00013976,2]
[420137960,1775709065667,-151.0,0.00013976,2]
[420137961,1775709065676,-227.276598,0.00013976,2]
[420137962,1775709065685,-203.38304,0.00013976,2]
[420137963,1775709065694,-227.276598,0.00013976,2]
[420137964,1775709065703,-553.904338,0.00013976,2]
[420137965,1775709065713,-377.939272,0.00014247,2]
[420137966,1775709065737,-72.556493,0.00014247,2]
[420137967,1775709065746,-227.276598,0.00014247,2]
[420137968,1775709065756,-16.297409,0.00014247,2]
[420137969,1775709494725,-857.4857,0.00010899,2]
[420137970,1775709494749,-195.0,0.00011171,2]
[420137971,1775709494773,-600.0,0.00011444,2]
[420137972,1775709494797,-195.0,0.00011634,2]
[420137973,1775709494821,-195.0,0.00011634,2]
[420137974,1775709494844,-30.5143,0.00011634,2]
[420137995,1775710231674,-300.0,0.00011633,2]
[420137996,1775710231683,-1200.0,0.00011633,2]
[420137997,1775710231692,-195.0,0.00011633,2]
[420137998,1775710231702,-600.0,0.00011633,2]
[420137999,1775710231711,-500.0,0.00011634,2]
[420138000,1775710231720,-276.81881226,0.00011634,2]
[420138001,1775710231799,-223.18118774,0.00011634,2]
[420138002,1775710231808,-248.79691566,0.00011634,2]
[420138003,1775710231825,-251.20308434,0.00011634,2]
[420138004,1775710231835,-500.0,0.00011634,2]
[420138005,1775710231844,-500.0,0.00011634,2]
[420138006,1775710231853,-95.54090288,0.00011634,2]
[420138007,1775710231864,-300.0,0.00011634,2]
[420138059,1775710237969,-104.45909712,0.00011634,2]
[420138060,1775710237979,-500.0,0.00011634,2]
[420138061,1775710237988,-209.06520032,0.00011634,2]
[420138174,1775710240092,-290.93479968,0.00011634,2]
[420138175,1775710240101,-500.0,0.00011634,2]
[420138176,1775710240111,-500.0,0.00011634,2]
[420138177,1775710240120,-500.0,0.00011634,2]
[420138178,1775710240129,-500.0,0.00011634,2]
[420138179,1775710240138,-500.0,0.00011634,2]
[420138180,1775710240147,-500.0,0.00011634,2]
[420138181,1775710240157,-500.0,0.00011634,2]
[420138182,1775710240167,-500.0,0.00011634,2]
[420138183,1775710240178,-500.0,0.00011634,2]
[420138184,1775710240187,-500.0,0.00011634,2]
[420138185,1775710240196,-500.0,0.00011634,2]
[420138186,1775710240206,-500.0,0.00011634,2]
[420138187,1775710240216,-500.0,0.00011634,2]
[420138188,1775710240226,-500.0,0.00011634,2]
[420138189,1775710240235,-500.0,0.00011634,2]
[420138190,1775710240248,-500.0,0.00011634,2]
[420138191,1775710240265,-500.0,0.00011634,2]
[420138192,1775710240284,-500.0,0.00011634,2]
[420138193,1775710240293,-500.0,0.00011634,2]
[420138194,1775710240303,-500.0,0.00011634,2]
[420138195,1775710240312,-500.0,0.00011634,2]
[420138196,1775710240322,-500.0,0.00011634,2]
[420138197,1775710240331,-500.0,0.00011634,2]
[420138198,1775710240341,-500.0,0.00011634,2]
[420138199,1775710240351,-500.0,0.00011634,2]
[420138200,1775710240360,-500.0,0.00011634,2]
[420138201,1775710240370,-500.0,0.00011634,2]
[420138202,1775710240379,-500.0,0.00011634,2]
[420138203,1775710240388,-500.0,0.00011634,2]
[420138204,1775710240398,-500.0,0.00011634,2]
[420138205,1775710240408,-500.0,0.00011634,2]
[420138206,1775710240417,-500.0,0.00011634,2]
[420138207,1775710240427,-500.0,0.00011634,2]
[420138208,1775710240436,-500.0,0.00011634,2]
[420138209,1775710240446,-500.0,0.00011634,2]
[420138210,1775710240455,-500.0,0.00011634,2]
[420138211,1775710240464,-500.0,0.00011634,2]
[420138212,1775710240473,-500.0,0.00011634,2]
[420138213,1775710240483,-500.0,0.00011634,2]
[420138214,1775710240493,-500.0,0.00011634,2]
[420138215,1775710240502,-500.0,0.00011634,2]
[420138216,1775710240512,-500.0,0.00011634,2]
[420138217,1775710240521,-500.0,0.00011634,2]
[420138218,1775710240531,-195.0,0.00011635,2]
[420138219,1775710240543,-195.0,0.00011635,2]
[420138220,1775710240553,-600.0,0.0001164,2]
[420138221,1775710240563,-600.0,0.0001164,2]
[420138222,1775710240572,-500.0,0.00011993,2]
[420138223,1775710240581,-227.79560374,0.00011993,2]
[420138224,1775710240590,-23564.85607435,0.00012,2]
[420138225,1775710240600,-150.0,0.000123,2]
[420138226,1775710240609,-1000.0,0.00012316,2]
[420138227,1775710240619,-1600.0,0.0001247,2]
[420138228,1775710240628,-15653.75,0.00012668,2]
[420138229,1775710240640,-420.0,0.00012775,2]
[420138230,1775710240650,-1680.0,0.00012796,2]
[420138231,1775710240659,-195.0,0.00012796,2]
[420138232,1775710240669,-600.0,0.00012796,2]
[420138233,1775710240678,-195.0,0.00012796,2]
[420138234,1775710240688,-600.0,0.00012796,2]
[420138235,1775710240697,-185.58,0.00012805,2]
[420138236,1775710240707,-372.0,0.00012852,2]
[420138237,1775710240716,-3926.93,0.00012871,2]
[420138238,1775710240726,-500.0,0.00012877,2]
[420138239,1775710240735,-250.0,0.00013,2]
[420138240,1775710240745,-500.0,0.00013,2]
[420138241,1775710240754,-500.0,0.00013,2]
[420138242,1775710240763,-500.0,0.00013014,2]
[420138243,1775710240772,-160.0,0.00013134,2]
[420138244,1775710240781,-1500.0,0.00013176,2]
[420138245,1775710240791,-1852.42,0.00013178,2]
[420138246,1775710240800,-166.66,0.0001321,2]
[420138247,1775710240809,-160.0,0.00013262,2]
[420138249,1775710240819,-3969.22,0.00013274,2]
[420138250,1775710240828,-500.0,0.00013335,2]
[420138251,1775710240837,-601.3376128,0.00013335,2]
[420138252,1775710240847,-578.20924308,0.00013335,2]
[420138253,1775710240856,-151.0,0.00013335,2]
[420138254,1775710240865,-743.50770149,0.00013335,2]
[420138255,1775710240874,-174.61919141,0.00013335,2]
[420138256,1775710240883,-500.0,0.0001339,2]
[420138257,1775710240893,-151.0,0.0001339,2]
[420138258,1775710240903,-500.0,0.00013424,2]
[420138259,1775710240912,-500.0,0.00013424,2]
[420138260,1775710240922,-500.0,0.00013424,2]
[420138261,1775710240931,-500.0,0.00013424,2]
[420138262,1775710240940,-500.0,0.00013424,2]
[420138263,1775710240949,-3240.0,0.00013425,2]
[420138264,1775710240959,-500.0,0.00013445,2]
[420138265,1775710240968,-151.0,0.00013445,2]
[420138266,1775710240978,-500.0,0.000135,2]
[420138267,1775710240987,-151.0,0.000135,2]
[420138268,1775710240997,-3000.0,0.00013534,2]
[420138269,1775710241008,-1000.0,0.00013548,2]
[420138270,1775710241019,-1000.0,0.00013548,2]
[420138271,1775710241028,-500.0,0.00013555,2]
[420138272,1775710241037,-151.0,0.00013555,2]
[420138273,1775710241049,-173.3735,0.000136,2]
[420138274,1775710241058,-503.61549382,0.00013609,3]
[420138275,1775710241067,-500.0,0.0001361,2]
[420138276,1775710241076,-151.0,0.0001361,2]
[420138277,1775710241086,-500.0,0.00013665,2]
[420138278,1775710241095,-151.0,0.00013665,2]
[420138279,1775710241105,-228.36765649,0.00013699,2]
[420138280,1775710241115,-166.66,0.00013699,2]
[420138281,1775710241124,-200.0,0.00013699,2]
[420138282,1775710241134,-786.15,0.00013699,2]
[420138283,1775710241143,-500.0,0.0001372,2]
[420138284,1775710241153,-151.0,0.0001372,2]
[420138285,1775710241163,-166.66,0.00013755,2]
[420138286,1775710241172,-500.0,0.00013775,2]
[420138287,1775710241182,-151.0,0.00013775,2]
[420138288,1775710241191,-1600.0,0.00013808,2]
[420138289,1775710241200,-500.0,0.0001383,2]
[420138290,1775710241209,-151.0,0.0001383,2]
[420138291,1775710241219,-166.66,0.00013836,2]
[420138292,1775710241228,-771.01748645,0.00013883,2]
[420138293,1775710241237,-181.08010149,0.00013883,2]
[420138294,1775710241247,-500.0,0.00013885,2]
[420138295,1775710241256,-151.0,0.00013885,2]
[420138296,1775710241266,-155.25198367,0.00013924,2]
[420138297,1775710241275,-500.0,0.0001394,2]